bitfinex/quotes_SOLUSD_20240818
["timestamp","ask_amount","ask_price","bid_price","bid_amount"]
[1723939620948,45.3232497,142.15,142.08,0.12549]
[1723939621270,45.3232497,142.15,142.09,16.3858]
[1723939626649,48.8406497,142.15,142.09,16.3858]
[1723939627050,59.5206497,142.15,142.09,16.3858]
[1723939627749,10.68,142.13,142.07,20.0]
[1723939628360,48.8406497,142.15,142.07,20.0]
[1723939628563,10.68,142.13,142.07,20.0]
[1723939629388,45.0,142.12,142.07,20.0]
[1723939629576,10.68,142.13,142.07,20.0]
[1723939630379,10.68,142.11,142.06,6.0004]
[1723939630551,10.68,142.11,142.05,15.581]
[1723939630552,10.68,142.09,142.05,15.581]
[1723939632360,10.68,142.09,142.03,6.6007]
[1723939632572,45.0,142.08,142.04,20.0]
[1723939632961,0.12549,142.13,142.04,20.0]
[1723939632962,10.68,142.11,142.04,20.0]
[1723939633267,45.0,142.1,142.04,20.0]
[1723939635274,3.5181,142.12,142.05,0.12549]
[1723939635490,3.5179,142.13,142.05,0.12549]
[1723939635789,10.68,142.12,142.05,0.12549]
[1723939636593,10.68,142.12,142.05,0.25098]
[1723939649616,3.5179,142.13,142.05,0.25098]
[1723939649787,10.68,142.11,142.05,0.25098]
[1723939652211,0.3232497,142.15,142.07,6.47689]
[1723939652418,0.3232497,142.15,142.09,0.12549]
[1723939658806,10.68,142.14,142.08,20.12549]
[1723939659007,10.68,142.14,142.08,20.0]
[1723939662116,10.68,142.12,142.08,20.0]
[1723939662638,10.68,142.12,142.07,6.3514]
[1723939668435,48.8406497,142.15,142.07,6.3514]
[1723939668626,10.68,142.14,142.07,6.3514]
[1723939669717,48.8406497,142.15,142.07,6.3514]
[1723939669916,10.68,142.14,142.07,6.3514]
[1723939676642,56.0032497,142.15,142.08,0.25098]
[1723939676847,56.0032497,142.15,142.08,20.25098]
[1723939677051,0.3232497,142.15,142.08,20.25098]
[1723939677360,0.3232497,142.15,142.09,0.25098]
[1723939677858,0.3232497,142.15,142.1,22.7246]
[1723939678029,0.3232497,142.15,142.11,20.37647]
[1723939678424,0.3232497,142.15,142.11,20.25098]
[1723939680356,0.3232497,142.15,142.11,20.0]
[1723939680556,11.0032497,142.15,142.11,20.0]
[1723939683347,11.0032497,142.15,142.1,22.7246]
[1723939684267,10.68,142.13,142.1,22.7246]
[1723939684963,10.68,142.13,142.07,0.12549]
[1723939685168,10.68,142.13,142.07,0.25098]
[1723939686573,10.68,142.13,142.07,20.25098]
[1723939687068,10.68,142.13,142.07,20.0]
[1723939687249,10.68,142.11,142.06,21.3235]
[1723939687453,45.0,142.1,142.06,21.3235]
[1723939688575,10.68,142.09,142.03,15.2819]
[1723939689643,10.68,142.07,142.01,6.0416]
[1723939689956,10.68,142.07,142.0,15.2819]
[1723939689957,10.68,142.05,142.0,15.2819]
[1723939690260,3.5194,142.07,141.97,6.0416]
[1723939690261,10.68,142.03,141.97,6.0416]
[1723939691838,10.68,142.05,141.98,20.0]
[1723939694043,14.1999,142.05,141.98,20.0]
[1723939694249,10.68,142.03,141.98,20.0]
[1723939694476,45.0,142.02,141.98,20.0]
[1723939695350,10.68,142.03,141.98,20.0]
[1723939695662,10.68,142.05,141.98,20.0]
[1723939695860,45.0,142.04,141.98,20.0]
[1723939698771,10.68,142.03,141.98,20.0]
[1723939699346,10.68,142.01,141.97,6.0416]
[1723939711879,45.0,142.02,141.97,6.0416]
[1723939720264,45.0,142.02,141.96,15.2819]
[1723939720481,10.68,142.01,141.96,15.2819]
[1723939720783,45.0,142.0,141.94,6.5326]
[1723939721094,45.0,142.0,141.95,20.0]
[1723939727180,10.68,141.99,141.93,16.2177]
[1723939728787,10.68,141.99,141.94,20.0]
[1723939734579,45.0,142.0,141.94,20.0]
[1723939734781,10.68,142.01,141.94,20.0]
[1723939737196,10.68,142.01,141.95,0.12549]
[1723939739978,10.68,142.01,141.94,20.0]
[1723939740182,10.68,141.99,141.94,20.0]
[1723939740591,10.68,141.99,141.91,6.1594]
[1723939740792,10.68,141.97,141.91,6.1594]
[1723939741394,10.68,141.95,141.89,16.3165]
[1723939743282,10.68,141.95,141.9,20.0]
[1723939744583,69.7016,141.98,141.9,20.0]
[1723939744909,10.68,141.95,141.9,20.0]
[1723939747185,45.0,141.94,141.9,20.0]
[1723939753899,45.0,141.94,141.88,20.0]
[1723939756400,55.68,141.94,141.88,20.0]
[1723939759928,70.8006,141.94,141.88,20.0]
[1723939760115,70.8006,141.94,141.86,20.0]
[1723939761827,10.68,141.92,141.86,20.0]
[1723939763030,10.68,141.9,141.82,16.2546]
[1723939763237,45.0,141.89,141.82,16.2546]
[1723939764208,45.0,141.89,141.83,20.0]
[1723939764817,10.68,141.88,141.83,20.0]
[1723939765018,10.68,141.88,141.82,20.0]
[1723939768210,45.0,141.87,141.82,20.0]
[1723939770359,16.5108,141.89,141.82,20.0]
[1723939774970,16.5108,141.89,141.83,0.12549]
[1723939775143,16.5108,141.89,141.83,0.37647]
[1723939784893,27.1908,141.89,141.83,0.25098]
[1723939785060,27.1908,141.89,141.83,0.12549]
[1723939789464,10.68,141.91,141.83,0.37647]
[1723939789680,10.68,141.91,141.84,0.25098]
[1723939792778,10.68,141.89,141.83,0.12549]
[1723939796564,10.68,141.87,141.81,6.0824]
[1723939798268,10.68,141.87,141.82,20.0]
[1723939801486,10.68,141.88,141.82,20.0]
[1723939802920,10.68,141.86,141.8,20.5549714]
[1723939803217,10.68,141.86,141.81,0.12549]
[1723939803624,16.4373,141.92,141.81,0.25098]
[1723939803799,10.68,141.9,141.82,17.34077]
[1723939804000,10.68,141.9,141.83,20.25098]
[1723939804207,10.68,141.9,141.84,0.25098]
[1723939805537,10.68,141.9,141.85,0.12549]
[1723939808928,10.68,141.91,141.85,0.12549]
[1723939811121,10.68,141.91,141.85,0.25098]
[1723939811715,10.68,141.91,141.85,0.12549]
[1723939811928,10.68,141.91,141.84,0.25098]
[1723939812133,10.68,141.89,141.83,35.15959]
[1723939816231,45.0,141.88,141.83,35.0341]
[1723939816431,45.0,141.88,141.83,15.0341]
[1723939816432,10.68,141.87,141.83,15.0341]
[1723939816637,10.68,141.87,141.82,6.2843]
[1723939817632,10.68,141.87,141.8,15.5890714]
[1723939819030,10.68,141.85,141.8,0.5549714]
[1723939821134,64.9614,141.88,141.8,0.5549714]
[1723939821135,10.68,141.83,141.8,0.5549714]
[1723939821532,45.0,141.82,141.8,0.5549714]
[1723939822720,10.68,141.83,141.8,0.5549714]
[1723939824040,10.68,141.85,141.8,0.5549714]
[1723939824234,45.0,141.84,141.8,0.5549714]
[1723939825332,10.68,141.83,141.8,0.5549714]
[1723939825528,45.0,141.82,141.8,0.5549714]
[1723939827141,10.68,141.81,141.8,0.5549714]
[1723939827347,55.68,141.81,141.8,0.5549714]
[1723939827641,45.0,141.81,141.8,0.5549714]
[1723939829124,66.2,141.81,141.8,0.5549714]
[1723939829336,66.70196,141.81,141.8,0.5549714]
[1723939829734,70.22776,141.81,141.8,0.5549714]
[1723939832418,66.70196,141.81,141.8,0.5549714]
[1723939832735,45.0,141.81,141.8,0.5549714]
[1723939832927,55.68,141.81,141.8,0.5549714]
[1723939834847,40.2866,141.85,141.8,0.5549714]
[1723939835048,10.68,141.84,141.8,0.5549714]
[1723939835624,15.5616,141.85,141.8,0.5549714]
[1723939835821,26.2416,141.85,141.8,0.5549714]
[1723939836832,15.5616,141.85,141.8,0.5549714]
[1723939837038,45.0,141.84,141.8,0.5549714]
[1723939840826,10.68,141.83,141.8,0.5549714]
[1723939842249,45.0,141.82,141.8,0.5549714]
[1723939845661,10.68,141.81,141.8,0.5549714]
[1723939845969,55.68,141.81,141.8,0.5549714]
[1723939849954,76.88,141.81,141.8,0.5549714]
[1723939850969,77.13098,141.81,141.8,0.5549714]
[1723939851170,80.65678,141.81,141.8,0.5549714]
[1723939851351,80.90776,141.81,141.8,0.5549714]
[1723939852664,24.7263,141.79,141.7,6.2648]
[1723939852861,10.68,141.77,141.7,6.2648]
[1723939853348,45.0,141.76,141.7,6.2648]
[1723939854244,45.0,141.76,141.71,20.0]
[1723939857676,45.0,141.76,141.7,6.2648]
[1723939859879,45.0,141.77,141.71,10.68]
[1723939860081,16.3354,141.81,141.72,20.0]
[1723939860299,16.3354,141.81,141.73,0.12549]
[1723939860808,16.3354,141.81,141.74,10.68]
[1723939860982,16.3354,141.81,141.75,20.0]
[1723939861307,10.68,141.83,141.75,20.0]
[1723939862489,16.3354,141.84,141.76,10.80549]
[1723939862797,22.6708,141.87,141.76,10.80549]
[1723939862798,10.68,141.85,141.77,20.25098]
[1723939863976,10.68,141.85,141.77,20.12549]
[1723939864172,45.0,141.84,141.77,20.0]
[1723939866599,45.0,141.84,141.76,20.0]
[1723939867094,10.68,141.85,141.77,0.50196]
[1723939876192,10.68,141.83,141.76,20.0]
[1723939877204,45.0,141.82,141.76,20.0]
[1723939878595,24.7247,141.86,141.76,20.0]
[1723939878899,10.68,141.84,141.76,20.0]
[1723939879100,45.0,141.83,141.76,20.0]
[1723939880896,10.68,141.82,141.76,20.0]
[1723939883697,45.0,141.81,141.75,6.0315]
[1723939883898,10.68,141.8,141.75,6.0315]
[1723939886705,45.0,141.81,141.75,6.0315]
[1723939886912,10.68,141.81,141.75,6.0315]
[1723939887218,45.0,141.8,141.75,6.0315]
[1723939890403,3.65059,141.84,141.75,6.0315]
[1723939890723,10.68,141.82,141.75,6.0315]
[1723939890897,45.0,141.81,141.75,6.0315]
[1723939899500,32.54,141.87,141.78,15.7314]
[1723939899705,10.68,141.85,141.78,15.7314]
[1723939900822,45.0,141.84,141.78,15.7314]
[1723939902522,3.5244,141.87,141.79,6.0458]
[1723939902724,10.68,141.86,141.79,6.0458]
[1723939904922,45.0,141.87,141.79,6.0458]
[1723939905114,55.68,141.87,141.79,6.0458]
[1723939908922,3.5246,141.86,141.79,6.0458]
[1723939909128,10.68,141.81,141.78,15.7314]
[1723939911130,10.68,141.81,141.76,6.0458]
[1723939911436,45.0,141.8,141.76,6.0458]
[1723939911819,10.68,141.81,141.76,6.0458]
[1723939916522,3.5251,141.84,141.76,6.0458]
[1723939916819,10.68,141.82,141.76,6.0458]
[1723939917242,10.68,141.8,141.76,6.0458]
[1723939920259,19.2267,141.86,141.76,6.0458]
[1723939920422,15.7019,141.86,141.77,0.50196]
[1723939920619,10.68,141.85,141.77,20.50196]
[1723939921042,10.68,141.85,141.77,31.18196]
[1723939925050,10.68,141.85,141.77,20.50196]
[1723939925928,3.5244,141.87,141.77,20.50196]
[1723939926147,10.68,141.85,141.77,20.50196]
[1723939928129,10.68,141.85,141.78,15.8502]
[1723939928346,10.68,141.85,141.79,20.12549]
[1723939928534,48.5241,141.88,141.79,20.12549]
[1723939928751,10.68,141.87,141.81,0.12549]
[1723939928964,6.3667,141.91,141.81,0.12549]
[1723939928965,10.68,141.91,141.82,15.8502]
[1723939929124,10.68,141.91,141.83,20.25098]
[1723939930247,45.0,141.9,141.83,20.25098]
[1723939931335,3.5231,141.92,141.84,0.12549]
[1723939931549,10.68,141.91,141.85,6.0394]
[1723939931735,15.1698,141.94,141.85,6.0394]
[1723939931937,10.68,141.95,141.87,16.1688]
[1723939932242,22.8254,141.98,141.87,16.1688]
[1723939932243,10.68,141.96,141.88,20.37647]
[1723939935676,10.68,141.94,141.88,20.0]
[1723939935864,10.68,141.92,141.88,20.0]
[1723939936064,10.68,141.92,141.87,16.1688]
[1723939938212,10.68,141.9,141.87,16.1688]
[1723939943917,10.68,141.9,141.85,6.0394]
[1723939956319,3.5228,141.93,141.85,6.0394]
[1723939956623,10.68,141.91,141.85,6.0394]
[1723939959716,10.68,141.89,141.85,6.0394]
[1723939960223,10.68,141.87,141.83,15.5872]
[1723939960652,45.0,141.86,141.83,15.5872]
[1723939962915,10.68,141.87,141.83,15.5872]
[1723939967842,10.68,141.87,141.81,6.4748]
[1723939976669,45.0,141.86,141.81,6.4748]
[1723939980158,10.68,141.85,141.81,6.4748]
[1723939980954,45.0,141.86,141.81,6.4748]
[1723939981149,55.68,141.86,141.81,6.4748]
[1723939986365,10.68,141.82,141.79,15.4662]
[1723939988639,10.68,141.82,141.77,6.1607]
[1723939990672,10.68,141.83,141.77,6.1607]
[1723939991062,15.6522,141.88,141.78,0.37647]
[1723939991063,10.68,141.87,141.78,0.37647]
[1723939991264,10.68,141.87,141.8,16.6599]
[1723939991484,10.68,141.87,141.81,1.41010024]
[1723939995950,15.6522,141.92,141.82,7.57080323]
[1723939996269,10.68,141.92,141.84,16.6599]
[1723939996756,10.68,141.92,141.85,0.50196]
[1723939997356,10.68,141.92,141.84,16.6599]
[1723939998067,45.0,141.91,141.84,16.6599]
[1723939999192,10.68,141.92,141.85,0.12549]
[1723939999481,10.68,141.92,141.85,0.50196]
[1723940000665,10.68,141.92,141.86,6.1607]
[1723940000869,10.68,141.92,141.87,0.12549]
[1723940001549,3.5224,141.95,141.87,0.12549]
[1723940001753,55.68,141.95,141.87,1.91130085]
[1723940001959,10.68,141.95,141.88,1.40932386]
[1723940002171,10.68,141.95,141.89,15.36149]
[1723940002672,10.68,141.95,141.9,1.40921662]
[1723940003278,10.68,141.95,141.89,15.36149]
[1723940004075,3.5218,141.97,141.89,15.36149]
[1723940004393,10.68,141.95,141.89,15.236]
[1723940004579,10.68,141.93,141.89,15.236]
[1723940005365,10.68,141.91,141.87,20.0]
[1723940007164,3.5224,141.95,141.87,20.0]
[1723940007367,10.68,141.93,141.87,20.0]
[1723940008964,3.5224,141.95,141.87,20.0]
[1723940009163,10.68,141.93,141.87,20.0]
[1723940009667,45.0,141.92,141.87,20.0]
[1723940011082,10.68,141.91,141.87,20.0]
[1723940011387,10.68,141.91,141.86,21.3967]
[1723940014274,48.5231,141.92,141.86,21.3967]
[1723940014275,10.68,141.89,141.86,21.3967]
[1723940015171,10.68,141.89,141.8,259.8]
[1723940015172,10.68,141.89,141.82,21.7015]
[1723940015376,45.0,141.88,141.82,21.7015]
[1723940016688,45.0,141.88,141.83,20.0]
[1723940021674,14.2043,141.87,141.82,6.1539]
[1723940021890,45.0,141.86,141.82,6.1539]
[1723940022273,10.68,141.87,141.82,6.1539]
[1723940025900,10.68,141.87,141.79,16.4938]
[1723940026106,10.68,141.87,141.8,20.0]
[1723940026107,45.0,141.86,141.8,20.0]
[1723940026399,10.68,141.87,141.8,20.0]
[1723940029405,45.0,141.86,141.8,20.0]
[1723940029906,10.68,141.85,141.8,20.0]
[1723940033601,10.63,141.85,141.8,20.0]
[1723940033976,45.0,141.86,141.8,20.0]
[1723940034197,55.68,141.86,141.8,20.0]
[1723940040689,10.68,141.86,141.8,20.0]
[1723940046178,45.0,141.85,141.8,20.0]
[1723940055613,10.68,141.84,141.79,22.5885]
[1723940055787,10.68,141.82,141.79,22.5885]
[1723940059894,10.68,141.82,141.76,21.2548]
[1723940060091,10.68,141.82,141.77,20.0]
[1723940060500,10.68,141.8,141.76,21.2548]
[1723940068218,10.68,141.8,141.72,22.31479]
[1723940068530,10.68,141.8,141.73,20.25098]
[1723940071405,10.68,141.8,141.73,20.12549]
[1723940071612,45.0,141.79,141.73,20.0]
[1723940082022,45.0,141.79,141.71,20.12549]
[1723940082339,45.0,141.79,141.72,0.37647]
[1723940083942,45.0,141.79,141.71,20.0]
[1723940084125,10.68,141.76,141.69,13.56338954]
[1723940085340,16.8019,141.76,141.69,7.34648954]
[1723940086238,16.8019,141.76,141.7,20.0]
[1723940088924,16.8019,141.76,141.68,20.12549]
[1723940089119,16.8019,141.76,141.69,0.25098]
[1723940090141,16.8019,141.76,141.68,20.0]
[1723940090440,45.0,141.75,141.67,30.93098]
[1723940092846,45.0,141.75,141.67,20.25098]
[1723940093049,10.68,141.74,141.67,20.25098]
[1723940095548,60.6437,141.73,141.67,20.12549]
[1723940096245,15.6437,141.73,141.67,20.12549]
[1723940099030,15.6437,141.73,141.68,0.12549]
[1723940099358,15.6437,141.73,141.68,0.37647]
[1723940099651,15.6437,141.73,141.69,0.12549]
[1723940103666,22.1786,141.76,141.7,0.12549]
[1723940103861,22.1786,141.76,141.7,0.37647]
[1723940104160,22.1786,141.76,141.71,0.12549]
[1723940104949,32.8586,141.76,141.7,0.12549]
[1723940105153,32.8586,141.76,141.7,0.25098]
[1723940105350,32.8586,141.76,141.7,0.12549]
[1723940105553,32.8586,141.76,141.69,0.25098]
[1723940108959,45.0,141.75,141.69,0.12549]
[1723940109759,10.68,141.74,141.66,20.8782211]
[1723940109962,45.0,141.73,141.66,20.8782211]
[1723940110135,45.0,141.73,141.66,0.8782211]
[1723940113966,15.6256,141.72,141.66,0.8782211]
[1723940117665,15.6256,141.72,141.67,0.50196]
[1723940117849,15.6256,141.72,141.67,20.50196]
[1723940122356,15.6256,141.72,141.67,11.18196]
[1723940122673,15.6256,141.72,141.68,20.0]
[1723940122880,15.6256,141.72,141.69,0.12549]
[1723940126981,15.6256,141.72,141.68,20.0]
[1723940127155,15.6256,141.72,141.66,20.8782211]
[1723940128274,15.6256,141.72,141.67,0.12549]
[1723940129261,15.6256,141.72,141.66,20.8782211]
[1723940135257,10.68,141.7,141.66,20.8782211]
[1723940135485,16.3417,141.69,141.66,0.8782211]
[1723940135685,10.68,141.68,141.66,0.8782211]
[1723940135976,10.68,141.68,141.56,58.33255418]
[1723940135977,16.3417,141.66,141.58,267.15076559]
[1723940136277,27.0217,141.66,141.57,10.68]
[1723940136583,27.0217,141.66,141.56,18.38184804]
[1723940136783,27.0217,141.66,141.58,10.68]
[1723940137177,16.3417,141.66,141.58,10.68]
[1723940137480,16.3417,141.66,141.6,10.68]
[1723940138177,16.3417,141.66,141.59,8.65446099]
[1723940138379,16.3417,141.66,141.6,20.0]
[1723940138567,16.3417,141.66,141.61,0.12549]
[1723940138883,16.3417,141.66,141.61,0.25098]
[1723940139182,16.3417,141.66,141.62,0.12549]
[1723940139387,16.3417,141.66,141.62,20.25098]
[1723940140982,16.3417,141.66,141.62,0.25098]
[1723940142795,15.5286,141.7,141.64,10.68]
[1723940142970,15.5286,141.7,141.65,20.25098]
[1723940143378,15.5286,141.7,141.66,1.41157048]
[1723940144190,15.5286,141.7,141.65,20.25098]
[1723940144969,15.5286,141.7,141.66,1.41156836]
[1723940145402,15.5286,141.7,141.65,20.37647]
[1723940145608,15.5286,141.7,141.66,0.25098]
[1723940145777,15.5286,141.7,141.67,0.25098]
[1723940145974,15.5286,141.7,141.65,20.0]
[1723940146192,15.5286,141.7,141.66,0.12549]
[1723940146694,15.5286,141.7,141.65,0.25098]
[1723940147485,26.2086,141.7,141.62,30.0]
[1723940147698,45.0,141.69,141.56,26.4148]
[1723940148003,45.0,141.69,141.61,10.68]
[1723940148797,45.0,141.69,141.62,20.0]
[1723940149792,26.2086,141.7,141.63,0.50196]
[1723940149999,15.5286,141.7,141.63,0.50196]
[1723940151301,15.5286,141.7,141.63,11.18196]
[1723940151594,15.5286,141.7,141.66,0.12549]
[1723940151799,15.5286,141.7,141.66,20.50196]
[1723940153309,15.5286,141.7,141.66,0.50196]
[1723940155007,15.5286,141.7,141.66,0.25098]
[1723940155184,15.5286,141.7,141.65,20.0]
[1723940155507,10.68,141.68,141.6,30.0]
[1723940156711,10.68,141.68,141.61,0.37647]
[1723940156999,10.68,141.68,141.62,0.25098]
[1723940159587,15.5286,141.7,141.62,0.25098]
[1723940159793,15.5286,141.7,141.64,0.12549]
[1723940161077,15.5286,141.7,141.64,20.12549]
[1723940161689,15.5286,141.7,141.64,0.12549]
[1723940162079,15.5286,141.7,141.64,20.12549]
[1723940162994,15.5286,141.7,141.66,0.12549]
[1723940165391,15.5286,141.7,141.65,0.12549]
[1723940165597,15.5286,141.7,141.64,20.0]
[1723940166322,45.0,141.69,141.62,20.0]
[1723940166684,15.5286,141.7,141.62,20.0]
[1723940167405,15.5286,141.7,141.63,0.25098]
[1723940167612,15.5286,141.7,141.63,0.12549]
[1723940167907,15.5286,141.7,141.62,20.12549]
[1723940168087,15.5286,141.7,141.63,0.12549]
[1723940169996,15.5286,141.7,141.63,0.25098]
[1723940170390,15.5286,141.7,141.63,10.93098]
[1723940170590,15.5286,141.7,141.64,20.25098]
[1723940170787,15.5286,141.7,141.65,0.12549]
[1723940171599,15.5286,141.7,141.65,0.25098]
[1723940174691,15.5286,141.7,141.65,1.66248592]
[1723940175011,15.5286,141.7,141.66,0.12549]
[1723940175313,15.5286,141.7,141.66,0.37647]
[1723940180215,15.5286,141.7,141.66,0.25098]
[1723940183725,10.68,141.73,141.66,0.25098]
[1723940184810,16.5484,141.74,141.67,10.68]
[1723940185014,36.7386,141.78,141.7,0.12549]
[1723940185015,16.5484,141.77,141.7,0.12549]
[1723940185321,41.4344,141.81,141.73,10.68]
[1723940185507,41.4344,141.81,141.71,10.68]
[1723940185508,10.68,141.79,141.71,10.68]
[1723940185708,10.68,141.79,141.72,20.0]
[1723940187141,10.68,141.79,141.73,30.0]
[1723940187921,16.5484,141.81,141.73,30.0]
[1723940188121,27.2284,141.81,141.73,30.0]
[1723940188325,27.2284,141.81,141.72,20.12549]
[1723940188637,27.2284,141.81,141.73,0.12549]
[1723940188833,45.0,141.8,141.73,0.12549]
[1723940189518,10.68,141.79,141.73,0.12549]
[1723940189931,10.68,141.79,141.72,20.0]
[1723940190132,45.0,141.78,141.72,20.0]
[1723940190531,45.0,141.78,141.73,30.0]
[1723940191120,45.0,141.78,141.72,20.0]
[1723940193322,45.0,141.78,141.71,0.25098]
[1723940193529,45.0,141.78,141.71,30.25098]
[1723940193733,45.0,141.78,141.72,20.0]
[1723940194453,45.0,141.78,141.73,30.0]
[1723940194630,10.68,141.77,141.73,30.0]
[1723940194842,45.0,141.76,141.73,30.0]
[1723940195427,27.2284,141.75,141.73,30.0]
[1723940195727,27.2284,141.75,141.67,33.1907]
[1723940195935,27.2284,141.75,141.69,30.0]
[1723940197250,27.2284,141.75,141.7,20.0]
[1723940203339,27.2284,141.75,141.69,30.0]
[1723940203545,45.0,141.74,141.69,30.0]
[1723940204346,45.0,141.74,141.66,30.0]
[1723940204549,27.2284,141.75,141.67,20.50196]
[1723940205348,27.2284,141.75,141.68,30.0]
[1723940205529,16.5484,141.75,141.68,30.0]
[1723940205729,16.5484,141.75,141.69,0.12549]
[1723940207652,15.9851,141.79,141.71,10.68]
[1723940207845,15.9851,141.79,141.73,10.68]
[1723940208045,15.9851,141.79,141.74,1.41081052]
[1723940208669,15.9851,141.83,141.74,1.41081052]
[1723940208967,15.9851,141.83,141.75,11.05647]
[1723940209139,15.9851,141.83,141.77,10.68]
[1723940209658,15.9851,141.83,141.78,1.41036599]
[1723940210156,10.68,141.86,141.78,50.12549]
[1723940210466,22.2267,141.87,141.79,1.41024207]
[1723940210756,15.9851,141.87,141.79,10.68]
[1723940210940,15.9851,141.87,141.8,20.0]
[1723940211143,15.9851,141.87,141.81,10.80549]
[1723940211468,16.9216,141.9,141.81,10.93098]
[1723940211677,15.9851,141.91,141.82,0.12549]
[1723940211873,15.9851,141.91,141.83,0.12549]
[1723940212155,15.9851,141.91,141.83,0.37647]
[1723940212361,15.9851,141.91,141.84,0.12549]
[1723940212546,16.3788,141.94,141.85,0.12549]
[1723940212866,10.0,141.94,141.85,0.37647]
[1723940213072,10.0,141.94,141.86,0.12549]
[1723940213279,10.0,141.94,141.87,0.12549]
[1723940213560,10.0,141.94,141.87,0.37647]
[1723940214349,10.0,141.94,141.86,0.12549]
[1723940214876,10.0,141.94,141.86,0.25098]
[1723940215567,10.0,141.94,141.86,0.12549]
[1723940216767,45.0,141.93,141.86,0.12549]
[1723940221046,10.0,141.94,141.86,0.25098]
[1723940221246,71.75,141.93,141.86,0.12549]
[1723940221875,45.0,141.93,141.86,0.12549]
[1723940222351,45.0,141.93,141.86,0.25098]
[1723940222771,45.0,141.93,141.86,20.25098]
[1723940223068,45.0,141.93,141.86,0.25098]
[1723940223249,10.0,141.94,141.86,1.66039806]
[1723940224072,10.0,141.94,141.86,0.25098]
[1723940226274,71.75,141.93,141.86,0.12549]
[1723940227670,71.75,141.93,141.85,0.25098]
[1723940227671,71.75,141.93,141.83,20.0]
[1723940227861,3.5231,141.92,141.82,16.4596]
[1723940229071,3.5231,141.92,141.83,0.50196]
[1723940229589,3.5231,141.92,141.83,20.50196]
[1723940231673,26.75,141.91,141.83,20.12549]
[1723940231875,45.0,141.9,141.83,20.12549]
[1723940233566,0.12549,141.89,141.81,6.5451]
[1723940233871,26.75,141.87,141.78,22.1239]
[1723940234071,30.2744,141.87,141.78,22.1239]
[1723940234285,27.25196,141.89,141.78,22.1239]
[1723940234286,26.75,141.85,141.78,22.1239]
[1723940234459,45.0,141.84,141.78,22.1239]
[1723940234796,30.2743,141.87,141.78,22.1239]
[1723940234969,19.585,141.9,141.81,26.75]
[1723940235158,16.0614,141.9,141.81,26.75]
[1723940235358,9.927,141.92,141.81,26.75]
[1723940235572,9.927,141.92,141.82,20.50196]
[1723940235775,30.2734,141.91,141.82,20.0]
[1723940236090,26.75,141.89,141.8,20.0]
[1723940236258,26.75,141.89,141.79,20.12549]
[1723940236459,3.5241,141.88,141.79,20.12549]
[1723940236770,48.5241,141.88,141.79,20.12549]
[1723940236969,45.0,141.88,141.79,20.12549]